bitfinex-derivatives/quotes_BNBF0:USTF0_20250425
["timestamp","ask_amount","ask_price","bid_price","bid_amount"]
[1745595831888,0.28689555,607.89,605.86,1.369]
[1745595833992,1.25180279,607.68,605.86,1.369]
[1745595835592,0.28695469,607.67,605.86,1.369]
[1745595836793,0.28695469,607.67,605.58,0.28695469]
[1745595836987,0.28695469,607.67,605.59,0.30284235]
[1745595838591,0.28695469,607.67,605.58,0.28695469]
[1745595838787,0.28695469,607.67,605.59,0.30283347]
[1745595838991,0.28695469,607.67,605.58,0.28695469]
[1745595840592,0.28695469,607.67,605.59,0.30283572]
[1745595841394,1.25180279,607.87,605.59,0.30283572]
[1745595841590,1.25180279,607.87,605.07,1.03571161]
[1745595841591,0.28695114,607.66,605.6,0.3028303]
[1745595841795,0.28695114,607.66,605.61,0.3028303]
[1745595841993,1.25180279,608.09,605.61,1.572]
[1745595842192,1.25180279,608.09,605.62,2.115]
[1745595842390,1.25180279,608.09,605.62,3.46]
[1745595843493,1.25180279,608.09,605.63,0.30284324]
[1745595844797,0.28694405,608.08,605.64,0.30285556]
[1745595844990,0.28694405,608.08,605.63,0.30285556]
[1745595846800,1.25180279,607.72,605.63,0.30285556]
[1745595847599,0.28696416,607.71,605.63,0.30285556]
[1745595849302,0.28696416,607.71,605.62,3.46]
[1745595850306,1.25180279,607.9,605.62,3.46]
[1745595850703,0.28692394,607.74,605.63,0.30276871]
[1745595851003,1.25180279,607.9,605.63,0.30276871]
[1745595851301,2.13447714,608.63,605.63,0.30276871]
[1745595851302,1.25180279,607.86,605.63,0.30276871]
[1745595852103,1.25180279,607.86,605.62,3.46]
[1745595852300,0.28692394,607.85,605.63,0.30277675]
[1745595853502,1.25180279,607.86,605.63,0.30277675]
[1745595853700,2.13447714,608.57,605.62,3.46]
[1745595853701,0.28692394,607.84,605.64,0.30277111]
[1745595854003,1.25180279,607.99,605.65,0.30277111]
[1745595854203,1.25180279,607.99,605.66,0.30277111]
[1745595854404,1.25180279,607.99,605.63,0.30277111]
[1745595854598,1.25180279,607.99,605.64,0.30277111]
[1745595854801,0.2868991,607.98,605.63,0.30277111]
[1745595855001,0.2868991,607.98,605.64,0.30277111]
[1745595855198,0.2868991,607.98,605.63,0.30277111]
[1745595855398,0.2868991,607.98,605.64,0.30277111]
[1745595855604,0.2868991,607.98,605.63,0.30277111]
[1745595855901,0.2868991,607.98,605.64,0.30277111]
[1745595856105,0.2868991,607.98,605.65,0.30277111]
[1745595856297,0.2868991,607.98,605.66,0.30277111]
[1745595856604,1.25180279,608.02,605.67,0.30277111]
[1745595856904,0.28689437,607.97,605.68,0.30277111]
[1745595857103,0.28689437,607.97,605.64,0.30277111]
[1745595857304,0.28689437,607.97,605.65,0.30277111]
[1745595857500,0.28689437,607.97,605.64,0.30277111]
[1745595857704,0.28689437,607.97,605.65,0.30277111]
[1745595857900,0.28689437,607.97,605.64,0.30277111]
[1745595858100,0.28689437,607.97,605.63,1.32260598]
[1745595858299,0.28689437,607.97,605.64,0.30276802]
[1745595859606,0.28689437,607.97,605.65,1.521]
[1745595859802,0.28689437,607.97,605.66,0.30276802]
[1745595862201,0.28689437,607.97,605.66,1.70576802]
[1745595862404,1.25180279,608.08,605.67,0.30276802]
[1745595862607,0.2868719,607.96,605.66,1.403]
[1745595862806,1.25180279,608.08,605.67,0.30275896]
[1745595863709,0.2868719,608.07,605.67,0.30275896]
[1745595864009,1.25180279,607.99,605.67,0.30275896]
[1745595864211,1.25180279,607.99,605.68,0.30275951]
[1745595864407,1.25180279,607.99,605.69,0.30275951]
[1745595864708,1.25180279,607.99,605.7,0.30275951]
[1745595864907,1.25180279,607.99,605.71,0.30275951]
[1745595865109,1.25180279,607.99,605.67,0.30275951]
[1745595865306,1.25180279,607.99,605.66,2.43871161]
[1745595865307,1.25180279,607.99,605.68,0.30275951]
[1745595865505,1.25180279,607.99,605.67,0.30275951]
[1745595865703,1.25180279,607.99,605.68,0.30273219]
[1745595866004,1.25180279,607.99,605.69,0.30273219]
[1745595866310,0.2868719,608.07,605.73,1.03571161]
[1745595866311,1.25180279,607.82,605.73,1.03571161]
[1745595866610,1.25180279,607.82,605.74,0.30273219]
[1745595867110,1.25180279,607.82,605.73,1.03571161]
[1745595867306,1.25180279,607.82,605.74,0.30274252]
[1745595867709,1.25180279,607.82,605.73,1.03571161]
[1745595868011,1.25180279,607.82,605.74,0.30276106]
[1745595868311,1.25180279,607.82,605.73,1.03571161]
[1745595869109,0.28689437,607.85,605.68,0.28689437]
[1745595869411,0.28689437,607.85,605.69,0.30275151]
[1745595871308,1.25180279,608.24,605.69,0.30275151]
[1745595871510,1.25180279,608.24,605.67,0.30275151]
[1745595871713,0.28684471,607.85,605.68,0.58959622]
[1745595872008,1.25180279,608.24,605.69,0.30275151]
[1745595872814,0.28686244,608.23,605.69,0.30275151]
[1745595873916,1.25180279,608.09,605.69,0.30275151]
[1745595876319,1.25180279,608.09,605.68,0.28684471]
[1745595876518,1.25180279,608.09,605.69,0.30277054]
[1745595879215,1.25180279,607.85,605.69,0.30277054]
[1745595880820,1.25180279,607.85,605.68,0.28684471]
[1745595881020,1.25180279,607.85,605.69,0.30275697]
[1745595881321,1.25180279,607.92,605.7,1.03571161]
[1745595881619,1.25180279,607.92,605.71,1.83375697]
[1745595881823,1.25180279,607.92,605.72,0.30275697]
[1745595882416,1.25180279,607.92,605.73,1.653]
[1745595882614,1.25180279,607.92,605.74,0.30275697]
[1745595883320,0.28687072,607.91,605.74,0.30275697]
[1745595883621,1.25180279,607.72,605.83,1.03571161]
[1745595885724,1.25180279,607.82,605.75,1.401]
[1745595886524,1.25180279,607.82,605.76,0.30279862]
[1745595886820,1.25180279,607.82,605.73,1.03571161]
[1745595887024,1.25180279,607.82,605.74,0.30282313]
[1745595887827,0.28687072,607.91,605.74,0.30282313]
[1745595887828,1.25180279,607.65,605.74,0.30282313]
[1745595888027,1.25180279,607.65,605.71,0.30282313]
[1745595888223,1.25180279,607.65,605.72,0.30282313]
[1745595888422,1.25180279,607.65,605.69,1.03571161]
[1745595888825,1.25180279,607.65,605.71,1.039]
[1745595890527,0.28695233,607.7,605.71,1.039]
[1745595891122,0.28695233,607.7,605.72,1.238]
[1745595891426,0.28695233,607.7,605.73,1.038]
[1745595891728,0.28695233,607.7,605.74,1.163]
[1745595892328,1.25180279,607.9,605.74,1.163]
[1745595892529,1.25180279,607.94,605.74,1.163]
[1745595892729,0.28691921,607.7,605.74,1.163]
[1745595892924,1.25180279,607.94,605.74,1.163]
[1745595894328,0.28691447,607.93,605.74,1.163]
[1745595895733,0.28691447,607.93,605.75,0.30279744]
[1745595897734,0.28691447,607.93,605.74,1.163]
[1745595897932,0.28691447,607.93,605.75,0.30278394]
[1745595898233,1.25180279,607.86,605.75,0.30278394]
[1745595899233,1.25180279,607.86,605.74,1.163]
[1745595899434,1.25180279,607.86,605.75,0.30277407]
[1745595900630,1.25180279,607.86,605.74,1.163]
[1745595900837,1.25180279,607.86,605.75,0.30275019]
[1745595901538,0.28668756,607.92,605.75,0.30275019]
[1745595904338,1.25180279,608.17,605.75,0.30275019]
[1745595904637,0.28682107,607.98,605.75,0.30275019]
[1745595904940,1.25180279,608.17,605.74,1.163]
[1745595905239,1.25180279,608.17,605.75,0.30269725]
[1745595905740,0.28682107,608.16,605.75,0.30269725]
[1745595905943,1.53862386,608.16,605.75,0.30269725]
[1745595907441,1.25180279,608.16,605.75,0.30269725]
[1745595907739,0.28682225,608.15,605.75,0.30269725]
[1745595910441,1.25180279,608.36,605.75,0.30269725]
[1745595910636,0.28679861,608.14,605.75,0.30269725]
[1745595910941,1.25180279,608.36,605.74,1.44979861]
[1745595911236,1.25180279,608.36,605.75,0.30270399]
[1745595911441,2.13447714,609.26,605.75,0.30270399]
[1745595911442,1.25180279,608.31,605.75,0.30270399]
[1745595911742,1.25180279,608.31,605.74,1.44979861]
[1745595911942,1.25180279,608.31,605.75,0.30270761]
[1745595913842,1.25180279,608.33,605.75,0.30270761]
[1745595914343,1.25180279,608.33,605.74,0.28679861]
[1745595914644,1.25180279,608.33,605.75,0.30275665]
[1745595915548,1.25180279,608.33,605.76,1.091]
[1745595917447,1.25180279,608.19,605.76,1.091]
[1745595920246,1.25180279,608.24,605.76,1.091]
[1745595920450,1.25180279,608.24,605.77,0.30276499]
[1745595921249,1.25180279,608.24,605.76,1.091]
[1745595922149,0.28685535,608.23,605.77,0.30277101]
[1745595922449,1.25180279,608.12,605.77,0.30277101]
[1745595923750,1.25180279,608.12,605.76,1.091]
[1745595923948,1.25180279,608.12,605.77,0.30277275]
[1745595925550,1.25180279,608.08,605.77,0.30277275]
[1745595926751,1.25180279,608.08,605.76,1.091]
[1745595926953,1.25180279,608.08,605.77,0.30276578]
[1745595927553,0.28686008,608.11,605.77,0.30276578]
[1745595928453,0.28686008,608.11,605.76,1.091]
[1745595928454,1.25180279,608.12,605.78,0.30276294]
[1745595928653,0.28686008,608.1,605.77,0.30276294]
[1745595930054,1.25180279,608.04,605.77,0.30276294]
[1745595931250,1.25180279,608.04,605.76,1.37786008]
[1745595931454,1.25180279,608.04,605.77,0.30271779]
[1745595931848,0.28684116,608.03,605.77,0.30271779]
[1745595932755,0.28684116,608.03,605.76,1.37784116]
[1745595933054,0.28684116,608.03,605.77,0.30270879]
[1745595934356,1.25180279,608.25,605.77,0.30270879]
[1745595934656,0.28681634,608.02,605.77,0.30270879]
[1745595934858,0.28681634,608.02,605.77,1.3384204]
[1745595935061,1.25180279,608.19,605.78,0.30270879]
[1745595935758,0.28682225,608.18,605.78,0.30270879]
[1745595936958,0.28682225,608.18,605.78,1.70170879]
[1745595937152,0.28682225,608.18,605.79,0.30270879]
[1745595937359,1.25180279,608.14,605.79,0.30270879]
[1745595939459,1.25180279,608.0,605.83,1.03571161]
[1745595939656,1.25180279,608.0,605.84,0.30270879]
[1745595942861,1.25180279,608.09,605.9,1.03571161]
[1745595943161,1.25180279,608.09,605.91,0.30270879]
[1745595943459,1.25180279,608.09,605.9,1.03571161]
[1745595943660,0.28678325,608.08,605.91,0.30265994]
[1745595945060,0.28678325,608.08,605.92,0.30263601]
[1745595945261,0.28678325,608.08,605.91,0.30263601]
[1745595945461,0.28678325,608.08,605.92,1.07]
[1745595945661,0.28678325,608.08,605.93,0.30263601]
[1745595947461,1.25180279,608.23,605.93,0.30263601]
[1745595947962,1.25180279,608.23,605.92,1.07]
[1745595948156,1.25180279,608.23,605.93,0.30247585]
[1745595948555,1.25180279,608.23,605.94,0.30247585]
[1745595948757,2.13447714,608.97,605.83,0.28678325]
[1745595948758,1.25180279,609.2,605.95,0.30247585]
[1745595948960,1.25180279,609.2,605.84,0.30247585]
[1745595949162,1.25180279,609.2,605.85,0.30247585]
[1745595949463,1.25180279,609.2,605.86,0.30247585]
[1745595949664,0.28658014,609.19,605.84,0.28658014]
[1745595949861,0.28658014,609.19,605.85,0.30247585]
[1745595950871,1.25180279,609.0,605.85,0.30247585]
[1745595952374,1.25180279,609.0,605.84,0.28658014]
[1745595952671,1.25180279,609.0,605.85,0.30245705]
[1745595953476,1.25180279,609.18,605.85,0.30245705]
[1745595953976,1.25180279,609.18,605.86,0.30245735]
[1745595954169,1.25180279,609.18,605.87,0.30245735]
[1745595954976,1.25180279,609.18,605.88,1.518]
[1745595955178,1.25180279,609.18,605.89,0.30245735]
[1745595955476,1.25180279,609.18,605.9,0.30245494]
[1745595955677,1.25180279,609.14,605.9,0.30245494]
[1745595956579,1.25180279,609.14,605.91,0.30245494]
[1745595956774,1.25180279,609.14,605.92,0.30245494]
[1745595957071,1.25180279,609.14,605.93,0.30245494]
[1745595957277,1.25180279,609.14,605.94,0.30245494]
[1745595957476,1.25180279,609.14,605.95,0.30245494]
[1745595957677,1.25180279,609.14,605.96,0.30245494]
[1745595957977,1.25180279,609.14,605.97,0.30245494]
[1745595958277,1.25180279,609.12,605.98,0.30245494]
[1745595958478,1.25180279,609.12,605.99,0.30245494]
[1745595958772,1.25180279,609.12,606.0,0.30245494]
[1745595958970,1.25180279,609.12,606.01,0.30245494]
[1745595959278,1.25180279,609.12,606.02,0.30245494]
[1745595959474,1.25180279,609.12,606.03,0.30245494]
[1745595959778,1.25180279,609.12,606.04,0.30245494]
[1745595959979,0.28658014,609.11,606.05,0.30245494]
[1745595960178,0.28658014,609.11,606.06,0.30245494]
[1745595960478,0.28658014,609.11,606.07,0.30245494]
[1745595960774,0.28658014,609.11,605.93,0.30245494]
[1745595960978,0.28658014,609.11,605.94,0.30245494]
[1745595961180,1.53838293,609.11,605.95,0.30245849]
[1745595961373,1.53838293,609.11,605.96,0.30245849]
[1745595961575,1.53838293,609.11,605.97,0.30245849]
[1745595961780,1.53838293,609.11,605.98,0.30245849]
[1745595962078,1.53838293,609.11,605.99,0.30245849]
[1745595962274,1.53838293,609.11,606.0,0.30245849]
[1745595962578,1.53838293,609.11,606.01,0.30245326]
[1745595962780,1.53838293,609.11,606.02,0.30245326]
[1745595962979,1.53838293,609.11,606.03,0.30245326]
[1745595963182,1.53838293,609.11,606.04,0.30245326]
[1745595963374,1.25180279,609.08,606.05,0.30245326]
[1745595963683,1.25180279,609.08,606.06,0.30245326]
[1745595963980,1.25180279,609.08,606.07,0.30245326]
[1745595964182,1.25180279,609.08,606.08,0.30245326]
[1745595964385,1.25180279,609.08,606.09,0.30245326]
[1745595964584,1.25180279,609.08,606.1,0.30245326]
[1745595964783,0.28658132,609.07,606.11,0.30245326]
[1745595964984,0.28658132,609.07,605.99,0.30245326]
[1745595965179,0.28658132,609.07,606.0,0.30245326]
[1745595965385,0.28658132,609.07,606.01,0.30245326]
[1745595965580,0.28658132,609.07,606.02,0.30245505]
[1745595965784,0.28658132,609.07,605.99,0.30245505]
[1745595965983,1.25180279,609.04,606.0,0.30245505]
[1745595966184,1.25180279,609.04,606.01,0.30245505]
[1745595966384,1.25180279,609.04,605.99,0.30245505]
[1745595966584,1.25180279,609.04,606.0,0.30245505]
[1745595966785,1.25180279,609.04,606.01,0.30245505]
[1745595966982,1.25180279,609.04,605.98,0.28658132]
[1745595967286,1.25180279,609.04,605.99,0.30244845]
[1745595967489,1.25180279,609.04,606.0,0.30244845]
[1745595967786,0.28657896,609.03,606.01,0.30244845]
[1745595967984,0.28657896,609.03,605.99,0.30244845]
[1745595968185,0.28657896,609.03,606.0,0.30244845]
[1745595968382,0.28657896,609.03,606.01,0.30244845]
[1745595968584,0.28657896,609.03,606.02,0.30244845]
[1745595968787,0.28657896,609.03,606.03,0.30244845]
[1745595968987,0.28657896,609.03,606.04,0.30244845]
[1745595969186,0.28657896,609.03,606.05,0.30244845]
[1745595969392,0.28657896,609.03,606.06,0.30244845]
[1745595969690,0.28657896,609.03,606.07,0.30244845]
[1745595969891,0.28657896,609.03,606.08,0.30244845]
[1745595970087,0.28657896,609.03,606.09,0.30244845]
[1745595970285,0.28657896,609.03,605.98,0.28657896]
[1745595970286,0.28657896,609.03,606.1,0.30244845]
[1745595970491,0.28657896,609.03,606.11,0.30244845]
[1745595970690,0.28657896,609.03,606.12,0.30244845]
[1745595970889,0.28657896,609.03,606.13,0.30244845]
[1745595971091,0.28657896,609.03,606.14,0.30244845]
[1745595971390,0.28657896,609.03,606.15,0.30244845]
[1745595971587,0.28657896,609.03,605.98,0.28657896]
[1745595971787,0.28657896,609.03,606.05,1.03571161]
[1745595971986,0.28657896,609.03,606.06,0.30236798]
[1745595972190,0.28657896,609.03,606.07,0.30236798]
[1745595972392,0.28657896,609.03,606.08,0.30236798]
[1745595972686,0.28657896,609.03,606.09,0.30236798]
[1745595972892,0.28657896,609.03,606.1,0.30236798]
[1745595973089,0.28657896,609.03,606.11,0.30236798]
[1745595973295,0.28657896,609.03,606.12,0.30236798]
[1745595973494,1.25180279,609.33,606.13,0.30236798]
[1745595973694,1.25180279,609.33,606.14,0.30236798]
[1745595973888,0.28649875,609.32,606.15,0.30236798]
[1745595974193,0.28649875,609.32,606.16,0.30236798]
[1745595974492,0.28649875,609.32,606.17,0.30236798]
[1745595974694,2.13034095,609.16,606.29,1.03571161]
[1745595974893,2.13034095,609.16,606.3,0.30234571]
[1745595975093,2.13034095,609.16,606.31,0.30234571]
[1745595975393,2.13034095,609.16,606.32,0.30234571]
[1745595975594,2.13034095,609.16,606.33,0.30234571]
[1745595975796,2.13034095,609.16,606.3,0.30234571]
[1745595976896,2.13034095,609.13,606.4,1.03571161]
[1745595977097,2.13034095,609.13,606.41,0.30234571]
[1745595979196,1.24760099,609.02,606.41,0.30234571]
[1745595979400,1.24760099,609.02,606.14,0.30234571]
[1745595979594,1.24760099,609.02,606.15,0.30234571]
[1745595979794,1.24760099,609.02,606.14,0.30234571]
[1745595979997,1.24760099,609.02,606.15,1.37834571]
[1745595980193,1.24760099,609.02,606.16,0.30234571]
[1745595980600,1.24760099,609.02,606.15,1.076]
[1745595980800,1.24760099,609.02,606.16,0.30245365]
[1745595981601,1.24760099,608.92,606.2,1.03571161]
[1745595981801,1.24760099,608.92,606.21,0.30245365]
[1745595982300,1.24760099,608.92,606.22,0.30245775]
[1745595982601,1.24760099,608.92,606.23,0.30245775]
[1745595982796,0.28656952,608.91,606.21,0.30245775]
[1745595983101,0.28656952,608.91,606.22,0.30245775]
[1745595983295,0.28656952,608.91,606.23,0.30245775]
[1745595983500,0.28656952,608.91,606.21,0.30245775]
[1745595983700,0.28656952,608.91,606.22,0.30245775]
[1745595984001,1.24760099,608.73,606.39,1.03571161]
[1745595984200,1.24760099,608.73,606.4,0.30245775]
[1745595984798,1.24760099,608.73,606.4,1.29745775]
[1745595984996,1.24760099,608.73,606.41,0.30245775]
[1745595986102,1.24760099,608.68,606.41,0.30245775]
[1745595987504,1.24760099,608.68,606.4,0.995]
[1745595987698,1.24760099,608.68,606.41,0.30246869]
[1745595989198,1.24760099,608.81,606.41,0.30246869]
[1745595989903,1.24760099,608.81,606.42,0.30247211]
[1745595990099,1.24760099,608.81,606.43,0.30247211]
[1745595990301,1.24760099,608.81,606.4,0.995]
[1745595990701,1.24760099,608.81,606.41,0.302471]
[1745595991204,1.24760099,608.81,606.4,0.995]
[1745595991403,1.24760099,608.81,606.41,0.30247033]
[1745595992004,0.28657542,608.8,606.41,0.30247033]
[1745595992605,1.24760099,608.51,606.41,0.30247033]
[1745595992800,1.24760099,608.51,606.4,2.535]
[1745595994706,0.28660139,608.5,606.4,2.535]
[1745595997407,1.24760099,608.83,606.4,2.535]
[1745595997709,0.28658486,608.49,606.4,2.535]
[1745595998002,1.24760099,608.83,606.4,2.535]
[1745595999703,0.28659902,608.82,606.4,2.535]
[1745596000008,1.24760099,608.73,606.4,2.535]
[1745596000708,0.28661083,608.72,606.4,2.535]
[1745596002104,0.28661083,608.72,606.4,4.022]
[1745596002610,0.28661083,608.72,606.4,5.233]
[1745596003010,1.24760099,608.37,606.4,5.233]
[1745596004914,1.24760099,608.65,606.4,5.233]
[1745596006716,0.28660375,608.64,606.4,5.233]
[1745596008712,1.24760099,608.51,606.4,5.233]
[1745596009917,0.28661555,608.5,606.4,5.233]
[1745596011520,1.24760099,608.48,606.4,5.233]
[1745596011820,1.24760099,608.48,606.3,0.28661555]
[1745596012021,1.24760099,608.48,606.31,0.30251556]
[1745596012221,1.24760099,608.48,606.3,0.28661555]
[1745596012520,1.24760099,608.48,606.14,1.03571161]
[1745596012721,1.24760099,608.48,606.15,0.30251649]
[1745596012921,0.28665923,608.47,606.3,0.28665923]
[1745596013118,0.28665923,608.47,606.14,1.03571161]
[1745596013318,0.28665923,608.47,606.15,0.30251542]
[1745596014018,0.28665923,608.47,606.16,0.28665214]
[1745596014218,0.28665923,608.47,606.17,0.30251542]
[1745596015418,1.24760099,608.52,606.18,0.30248202]
[1745596015621,1.24760099,608.52,606.19,0.30248202]
[1745596015815,0.28664506,608.46,606.2,0.30248202]
[1745596016018,0.28664506,608.46,606.17,0.30248202]
[1745596016219,0.28664506,608.46,606.18,0.30248202]
[1745596016416,0.28664506,608.46,606.17,1.89348202]
[1745596016622,0.28664506,608.46,606.18,0.30248202]
[1745596017223,0.28664506,608.46,606.25,1.03571161]
[1745596017422,0.28664506,608.46,606.26,0.30248202]
[1745596017819,0.28664506,608.46,606.27,3.432]
[1745596018024,0.28664506,608.46,606.28,0.30248202]
[1745596018323,0.28664506,608.46,606.27,3.432]
[1745596018524,1.24760099,608.49,606.28,0.30248709]
[1745596019025,0.28661909,608.45,606.28,0.30248709]
[1745596019924,0.28661909,608.45,606.27,3.432]
[1745596020125,1.53422008,608.45,606.28,1.3381889]
[1745596020424,1.53422008,608.45,606.29,0.30247729]
[1745596021426,1.24760099,608.45,606.29,0.30247729]
[1745596021726,0.28661791,608.44,606.29,0.30247729]
[1745596023122,0.28661791,608.44,606.3,0.30247729]
[1745596023327,0.28661791,608.44,606.28,0.30247729]
[1745596023622,0.28661791,608.44,606.31,0.30247729]
[1745596023826,0.28661791,608.44,606.29,0.30247729]
[1745596024030,0.28661791,608.44,606.32,0.30247729]
[1745596024225,0.28661791,608.44,606.33,0.30247729]
[1745596024430,1.24760099,608.67,606.34,0.30247729]
[1745596024624,1.24760099,608.67,606.28,0.58906097]
[1745596024829,0.28658368,608.45,606.29,0.30247729]
[1745596025029,1.24760099,608.74,606.29,0.30247729]
[1745596027131,1.53417523,608.73,606.28,0.28658368]
[1745596027331,1.53417523,608.73,606.29,0.30245172]
[1745596027530,1.24760099,608.73,606.29,0.30245172]
[1745596027830,0.28657542,608.72,606.29,0.30245172]
[1745596028728,0.28657542,608.72,606.28,0.28658368]
[1745596028930,0.28657542,608.72,606.29,0.3024611]
[1745596030228,0.28657542,608.72,606.28,0.28658368]
[1745596030430,0.28657542,608.72,606.29,0.3025211]
[1745596031434,0.28657542,608.72,606.28,0.28658368]
[1745596031729,1.24760099,608.3,606.29,0.30252552]
[1745596034333,1.24760099,608.36,606.29,0.30252552]
[1745596036237,1.24760099,608.36,606.27,1.005]
[1745596036238,1.24760099,608.42,606.27,1.005]
[1745596036933,1.24760099,608.42,606.28,0.30242285]
[1745596038439,1.24760099,609.17,606.28,0.30242285]
[1745596038634,1.24760099,609.17,606.28,1.44542285]
[1745596038937,1.24760099,609.17,606.29,0.30242285]
[1745596039139,0.28648577,609.16,606.29,0.30242285]
[1745596039540,1.24760099,609.17,606.29,0.30242285]
[1745596039840,1.24760099,609.17,606.28,1.143]
[1745596040040,1.24760099,609.17,606.29,0.30236745]
[1745596040740,2.13034095,609.38,606.29,0.30236745]
[1745596041139,0.28648813,609.16,606.29,0.30236745]
[1745596041440,2.13034095,609.38,606.29,0.30236745]
[1745596041639,0.28647988,609.15,606.29,0.30236745]
[1745596042141,2.13034095,609.38,606.29,0.30236745]
[1745596042342,0.28647988,609.14,606.29,0.30236745]
[1745596042635,2.13034095,609.38,606.29,0.30236745]
[1745596042837,2.13447714,610.65,606.37,1.03571161]
[1745596042838,2.13034095,608.92,606.37,1.03571161]
[1745596043040,2.13034095,608.92,606.38,0.30236745]
[1745596043740,0.28652351,608.91,606.38,0.30236745]
[1745596045442,2.13034095,609.46,606.29,0.30236745]
[1745596045743,0.28646573,608.9,606.3,0.58883318]
[1745596045942,0.28646573,608.9,606.31,0.30236745]
[1745596046143,2.13034095,609.46,606.32,0.30235456]
[1745596046444,2.13034095,609.46,606.33,0.30235456]
[1745596046646,2.13034095,609.46,606.33,0.978]
[1745596046844,0.28644215,609.45,606.34,0.30235456]
[1745596048545,2.13034095,609.57,606.34,0.30235456]
[1745596048847,0.28642565,609.44,606.34,0.30235456]
[1745596049045,2.13034095,609.57,606.34,0.30235456]
[1745596049746,0.28642565,609.56,606.34,0.30235456]
[1745596051447,2.13034095,609.59,606.34,0.30235456]
[1745596051742,0.28642329,609.55,606.34,0.30235456]
[1745596055448,0.28642329,609.55,606.33,0.28642329]
[1745596055651,0.28642329,609.55,606.34,0.30231431]
[1745596055851,0.28642329,609.55,606.35,0.30231431]
[1745596055852,2.13034095,609.51,606.35,0.30231431]
[1745596056150,2.13034095,609.51,606.36,0.30231431]
[1745596056450,2.13034095,609.51,606.37,0.30231431]
[1745596056647,2.13034095,609.51,606.38,0.30231431]
[1745596056856,2.13034095,609.51,606.39,0.30231431]
[1745596057047,2.13034095,609.51,606.4,0.30231431]
[1745596057851,0.28641622,609.5,606.4,0.30231431]
[1745596058154,0.28641622,609.5,606.4,1.24631431]
[1745596058454,0.28641622,609.5,606.41,0.30231431]
[1745596059955,2.13034095,608.99,606.44,1.03571161]
[1745596060354,2.13034095,608.99,606.45,0.30231735]
[1745596060755,0.28647162,608.98,606.45,0.30231735]
[1745596061657,0.28647162,608.98,606.44,1.03571161]
[1745596061857,0.28647162,608.98,606.45,0.30231386]
[1745596062751,0.28647162,608.98,606.42,0.30231386]
[1745596062952,0.28647162,608.98,606.43,0.30231386]
[1745596063153,0.28647162,608.98,606.41,1.03571161]
[1745596063352,0.28647162,608.98,606.42,0.30229733]
[1745596064756,0.28647162,608.98,606.41,1.03571161]
[1745596064960,0.28647162,608.98,606.42,0.30230739]
[1745596065361,0.28647162,608.98,606.43,0.30230739]
[1745596065561,0.28647162,608.98,606.41,0.30230739]
[1745596065762,0.28647162,608.98,606.42,0.30230739]
[1745596066062,0.28647162,608.98,606.43,0.30230739]
[1745596066256,0.28647162,608.98,606.41,0.30230739]
[1745596066459,2.13034095,609.58,606.41,0.30230739]
[1745596066863,0.28640443,608.97,606.41,0.30230739]
[1745596067062,2.13034095,609.58,606.41,0.30230739]
[1745596068463,2.13034095,609.54,606.41,0.30230739]
[1745596069163,0.28640915,609.53,606.41,0.30230739]
[1745596071264,2.13034095,609.5,606.41,0.30230739]
[1745596072460,2.13034095,609.5,606.4,1.962]
[1745596072658,2.13034095,609.5,606.41,0.30232957]
[1745596072864,0.28642565,609.49,606.41,0.30232957]
[1745596073763,2.13034095,609.32,606.41,1.33804118]
[1745596073965,2.13034095,609.32,606.42,0.30232957]
[1745596074965,2.13034095,609.32,606.42,1.57932957]
[1745596075265,2.13034095,609.32,606.43,0.30232957]
[1745596075765,0.28644451,609.31,606.43,0.30232957]
[1745596076060,2.13034095,609.05,606.53,1.03571161]
[1745596076265,2.13034095,609.05,606.54,0.30232957]
[1745596077860,2.13034095,609.05,606.54,1.67232957]
[1745596078063,2.13034095,609.05,606.55,0.30232957]
[1745596078767,0.28645512,609.04,606.55,0.30232957]
[1745596080269,0.28645512,609.04,606.55,1.33804118]
[1745596080465,0.28645512,609.04,606.56,0.30232957]
[1745596081168,0.28645512,609.04,606.55,1.03571161]
[1745596081363,0.28645512,609.04,606.56,0.30231723]
[1745596081663,2.13034095,609.07,606.56,0.30231723]
[1745596081863,0.28645158,609.03,606.56,0.30231723]
[1745596082572,0.28645158,609.03,606.55,1.03571161]
[1745596082773,0.28645158,609.03,606.56,0.3023143]
[1745596082965,2.41679253,609.03,606.61,1.03571161]
[1745596083171,2.41679253,609.03,606.62,0.3023143]
[1745596083972,2.41679253,609.03,606.63,1.409]
[1745596084270,2.41679253,609.03,606.64,0.3023143]
[1745596084474,2.13034095,609.03,606.64,0.3023143]
[1745596084773,0.28644215,609.02,606.64,0.3023143]
[1745596085569,2.13034095,609.0,606.63,1.409]
[1745596085770,2.13034095,609.0,606.64,0.30231452]
[1745596087074,2.13034095,609.0,606.63,1.409]
[1745596087273,2.13034095,609.0,606.64,0.30231452]
[1745596088275,0.28644215,609.02,606.64,0.30231452]
[1745596088276,2.13034095,608.94,606.66,1.03571161]
[1745596088467,2.13034095,608.94,606.67,0.30231452]
[1745596090473,2.13034095,608.89,606.69,1.03571161]
[1745596090674,2.13034095,608.89,606.7,0.30231452]